bitfinex-derivatives/quotes_ETHF0:USTF0_20241013
["timestamp","ask_amount","ask_price","bid_price","bid_amount"]
[1728862260206,1.72581,2464.8,2464.7,0.40582]
[1728862261314,1.32,2464.8,2464.7,0.40582]
[1728862261518,2.1169,2464.9,2464.8,0.40581]
[1728862262111,1.7112,2464.9,2464.8,0.40581]
[1728862262306,0.3912,2464.9,2464.8,1.72581]
[1728862262609,3.2078,2465.2,2464.8,1.32]
[1728862262815,3.61354,2465.2,2465.1,0.40576]
[1728862263116,2.1263,2465.3,2464.9,1.32]
[1728862263417,2.53204,2465.3,2465.2,0.40574]
[1728862268519,2.1263,2465.3,2465.0,0.3943]
[1728862268718,1.32,2465.1,2465.0,0.80008]
[1728862269316,0.8063,2465.3,2465.0,1.7143]
[1728862269520,1.7097,2465.3,2465.2,0.40574]
[1728862271217,0.40575,2465.2,2465.1,0.40575]
[1728862271425,2.13445,2465.2,2465.1,0.40575]
[1728862271725,1.7287,2465.2,2465.1,0.40575]
[1728862273521,2.13444,2465.2,2465.1,0.40575]
[1728862273713,1.7287,2465.2,2465.1,0.40575]
[1728862273913,2.13444,2465.2,2465.1,0.40575]
[1728862274118,2.12039701,2465.5,2465.4,0.40571]
[1728862274321,2.12039701,2465.5,2465.4,1.72571]
[1728862277719,8.35467627,2465.6,2465.5,0.40569]
[1728862277720,5.70418,2465.6,2465.5,0.40569]
[1728862278924,5.70418,2465.6,2465.4,1.7257]
[1728862278925,0.40569,2465.5,2465.4,1.7257]
[1728862279320,5.70419,2465.6,2465.5,0.40569]
[1728862280127,3.9785,2465.6,2465.5,1.72569]
[1728862280319,4.38418,2465.6,2465.5,1.72569]
[1728862281821,3.59,2465.6,2465.5,1.72569]
[1728862282527,3.2078,2465.6,2465.5,1.72569]
[1728862282730,3.61344,2465.9,2465.8,0.40564]
[1728862282920,3.61344,2465.9,2465.8,1.72564]
[1728862283319,3.2078,2465.9,2465.8,1.72564]
[1728862283523,0.3862,2466.1,2465.8,5.3752]
[1728862283524,3.2078,2466.1,2465.8,5.3752]
[1728862283722,0.416,2466.2,2466.1,0.40559]
[1728862283941,0.82158,2466.2,2466.1,2.11559]
[1728862284832,0.416,2466.2,2466.1,2.11559]
[1728862285329,0.4074,2466.3,2466.2,0.40558]
[1728862285630,1.22707,2466.3,2466.2,0.40558]
[1728862286029,1.22707,2466.3,2466.1,1.71]
[1728862286030,1.22707,2466.3,2466.1,2.11558]
[1728862286532,2.54707,2466.3,2466.1,2.11558]
[1728862287143,2.54707,2466.3,2466.0,0.40561]
[1728862287144,1.72558,2466.2,2466.0,0.40561]
[1728862287339,1.32,2466.1,2465.9,1.32]
[1728862287630,1.32,2466.0,2465.9,0.40563]
[1728862287931,1.32,2466.0,2465.9,1.72563]
[1728862287932,0.4005,2466.0,2465.9,1.72563]
[1728862288518,0.80611,2466.0,2465.9,1.72563]
[1728862288724,0.4005,2466.0,2465.9,1.72563]
[1728862294632,4.9419,2466.3,2465.9,1.32]
[1728862294834,0.3856,2466.2,2466.1,1.32]
[1728862296236,0.40561,2466.1,2466.0,0.40561]
[1728862296733,1.7056,2466.2,2466.0,0.40561]
[1728862296938,2.11119,2466.2,2465.9,1.32]
[1728862297134,0.79119,2466.2,2466.1,0.40559]
[1728862297637,0.79119,2466.2,2466.1,1.72559]
[1728862300941,5.34747,2466.3,2466.1,1.32]
[1728862301142,4.02747,2466.3,2466.2,0.40558]
[1728862301343,4.02747,2466.3,2466.2,0.80218]
[1728862302244,4.02747,2466.3,2466.2,2.12218]
[1728862302446,3.6219,2466.3,2466.2,2.12218]
[1728862302636,4.02746,2466.3,2466.2,2.12218]
[1728862303033,3.6219,2466.3,2466.2,2.12218]
[1728862304141,3.2078,2466.3,2466.2,2.12218]
[1728862304541,0.49952,2466.6,2466.5,0.40553]
[1728862304741,0.40552,2466.6,2466.5,0.40553]
[1728862304939,4.45992,2466.6,2466.5,0.40553]
[1728862305350,4.45993,2466.6,2466.5,0.40553]
[1728862305742,0.40553,2466.6,2466.5,0.40553]
[1728862307150,0.40553,2466.5,2466.4,1.72554]
[1728862309248,1.72552,2466.6,2466.5,0.40553]
[1728862309443,0.40553,2466.5,2466.4,1.72554]
[1728862310345,0.40552,2466.6,2466.5,0.40552]
[1728862310547,6.10261,2466.7,2466.6,0.40551]
[1728862310745,0.40551,2466.6,2466.5,1.72552]
[1728862311047,0.40551,2466.6,2466.5,1.32]
[1728862312244,5.6971,2466.7,2466.4,1.72554]
[1728862312563,0.40553,2466.5,2466.4,1.72554]
[1728862316544,0.40553,2466.5,2466.2,0.3966]
[1728862316545,1.32,2466.5,2466.2,0.3966]
[1728862316849,1.72556,2466.4,2466.3,0.40556]
[1728862317039,0.40556,2466.3,2466.2,2.12217]
[1728862319939,0.40556,2466.3,2466.2,1.7166]
[1728862320744,0.40556,2466.3,2466.2,0.3966]
[1728862320939,0.40556,2466.3,2466.2,2.12218]
[1728862321352,0.40556,2466.3,2466.2,1.7166]
[1728862321752,0.40556,2466.3,2466.2,2.12218]
[1728862321944,0.4155,2466.4,2466.2,1.7166]
[1728862322146,0.82105,2466.4,2466.3,1.72556]
[1728862322855,0.82105,2466.4,2466.3,1.32]
[1728862324650,3.2078,2466.5,2466.3,1.32]
[1728862324852,3.2078,2466.5,2466.4,1.32]
[1728862325047,3.2078,2466.5,2466.4,1.72555]
[1728862325451,3.61333,2466.5,2466.4,1.72555]
[1728862325855,3.2078,2466.5,2466.4,1.72555]
[1728862326157,3.61333,2466.5,2466.4,1.72555]
[1728862326459,3.2078,2466.5,2466.4,1.72555]
[1728862326954,3.61333,2466.5,2466.4,1.72555]
[1728862327150,5.73372701,2466.5,2466.4,1.72555]
[1728862327750,0.40556,2466.4,2466.3,1.32]
[1728862327951,0.40556,2466.4,2466.3,1.72556]
[1728862328160,0.79996,2466.4,2466.3,1.72556]
[1728862329160,2.92035701,2466.4,2466.3,1.72556]
[1728862331158,2.12039701,2466.4,2466.3,1.72556]
[1728862331358,0.40553,2466.5,2466.4,0.40555]
[1728862331553,2.52592701,2466.5,2466.4,2.13365]
[1728862331753,0.40553,2466.5,2466.4,2.13365]
[1728862332057,5.32819701,2466.6,2466.4,2.13365]
[1728862332257,5.73371701,2466.6,2466.5,0.40553]
[1728862332451,5.73371701,2466.6,2466.5,0.80043]
[1728862333056,5.73371701,2466.6,2466.5,0.3949]
[1728862333270,5.73371701,2466.6,2466.5,0.80043]
[1728862333457,5.73370701,2466.6,2466.5,0.80043]
[1728862333656,5.32819701,2466.6,2466.5,0.80043]
[1728862333857,5.73370701,2466.6,2466.5,2.12043]
[1728862334659,5.32819701,2466.6,2466.5,2.12043]
[1728862334861,3.2078,2466.6,2466.5,3.46719221]
[1728862335060,2.52587701,2466.8,2466.7,0.4055]
[1728862335265,0.40548,2466.8,2466.7,1.32]
[1728862339562,0.40548,2466.8,2466.5,1.45834361]
[1728862339563,0.4055,2466.7,2466.6,1.32]
[1728862339859,0.789,2466.7,2466.6,1.32]
[1728862345660,0.789,2466.7,2466.6,1.7242]
[1728862349472,0.40553,2466.5,2466.4,1.06344361]
[1728862349767,0.40553,2466.5,2466.4,1.32]
[1728862358775,4.0544,2466.5,2466.3,0.4163]
[1728862359074,4.0544,2466.5,2466.0,2.12961435]
[1728862359075,1.7357,2466.4,2466.0,1.46905361]
[1728862359279,3.61339,2466.2,2466.1,0.80659]
[1728862359977,3.61339,2466.2,2466.1,0.401]
[1728862360174,3.61339,2466.2,2466.1,0.80659]
[1728862361281,3.61339,2466.2,2466.1,2.12659]
[1728862361979,0.40559,2466.2,2466.1,2.12659]
[1728862362976,5.33312272,2466.3,2466.1,1.721]
[1728862363172,5.33312272,2466.3,2466.2,1.32]
[1728862363173,5.73869272,2466.3,2466.2,1.32]
[1728862363874,3.61337,2466.3,2466.2,1.32]
[1728862367583,0.40557,2466.3,2466.2,1.32]
[1728862367778,0.40557,2466.3,2466.2,1.72558]
[1728862368884,0.40557,2466.3,2466.2,1.32]
[1728862370082,0.40556,2466.3,2466.2,1.72557]
[1728862370282,1.01384,2466.5,2466.4,0.40555]
[1728862370283,2.53085272,2466.5,2466.4,0.40555]
[1728862370485,5.33312272,2466.6,2466.5,0.40553]
[1728862370689,3.61331,2466.6,2466.5,0.40553]
[1728862370890,3.61331,2466.6,2466.5,0.81883]
[1728862371184,3.2078,2466.6,2466.5,0.81883]
[1728862371589,3.61331,2466.6,2466.5,2.13883]
[1728862372184,3.2078,2466.6,2466.5,2.13883]
[1728862372387,3.61331,2466.6,2466.5,2.13883]
[1728862373091,3.2078,2466.6,2466.5,2.13883]
[1728862373594,0.40551,2466.7,2466.6,0.40551]
[1728862373782,0.40551,2466.7,2466.6,1.72551]
[1728862374290,3.35151272,2466.8,2466.6,1.72551]
[1728862374484,3.35151272,2466.8,2466.7,1.32]
[1728862374688,2.94602272,2466.8,2466.7,1.7251]
[1728862375085,2.54762272,2466.8,2466.7,1.7251]
[1728862375489,2.54762272,2466.8,2466.7,2.1306]
[1728862375688,0.4223,2466.8,2466.7,2.1306]
[1728862376191,2.53078272,2466.9,2466.7,2.1306]
[1728862376192,2.12532272,2466.9,2466.8,0.40548]
[1728862376391,5.72112272,2467.0,2466.8,1.72548]
[1728862376687,6.12658272,2467.0,2466.8,2.14898]
[1728862377185,2.53078272,2466.9,2466.8,1.7435]
[1728862377390,0.40546,2466.9,2466.8,1.7435]
[1728862377692,5.72112272,2467.0,2466.8,1.7435]
[1728862377892,6.12658272,2467.0,2466.8,2.14898]
[1728862378681,6.12658272,2467.0,2466.9,1.32]
[1728862380295,5.72112272,2467.0,2466.9,1.32]
[1728862380495,3.2078,2467.0,2466.9,1.72546]
[1728862380696,3.61325,2467.0,2466.9,1.32]
[1728862380897,4.9278,2467.0,2466.8,1.7435]
[1728862381288,5.33326,2467.0,2466.8,2.14898]
[1728862381497,0.40546,2466.9,2466.8,2.14898]
[1728862382091,5.33326,2467.0,2466.8,2.14898]
[1728862383690,4.01326,2467.0,2466.9,0.40546]
[1728862383891,3.6078,2467.0,2466.9,0.40546]
[1728862384195,3.6078,2467.0,2466.9,1.72546]
[1728862385095,4.01325,2467.0,2466.9,1.72546]
[1728862385289,3.6078,2467.0,2466.9,1.72546]
[1728862385598,3.2078,2467.0,2466.9,1.72546]
[1728862387799,1.22214,2467.1,2466.9,1.72546]
[1728862388003,0.40545,2467.0,2466.9,1.72546]
[1728862389007,0.40545,2467.0,2466.9,1.32]
[1728862390106,0.40545,2467.0,2466.9,1.72546]
[1728862390602,1.22215,2467.1,2466.9,1.72546]
[1728862391603,0.40545,2467.0,2466.9,1.72546]
[1728862392899,1.22214,2467.1,2466.9,1.72546]
[1728862394103,0.8167,2467.1,2467.0,1.32]
[1728862394401,3.2078,2467.2,2467.1,0.40543]
[1728862394602,4.011,2467.5,2467.1,2.1246]
[1728862394804,4.011,2467.5,2467.4,1.32]
[1728862395015,4.41637,2467.5,2467.4,1.32]
[1728862395304,4.41637,2467.5,2467.4,1.72538]
[1728862395608,4.41637,2467.5,2467.4,1.32]
[1728862399215,4.41636,2467.5,2467.4,1.32]
[1728862400111,4.41636,2467.5,2467.3,0.40539]
[1728862400318,4.01526,2467.5,2467.4,1.32]
[1728862400711,3.6099,2467.5,2467.4,1.72538]
[1728862401218,3.2078,2467.5,2467.4,1.72538]
[1728862402008,0.40535,2467.6,2467.5,0.40536]
[1728862402215,0.40535,2467.6,2467.5,2.11616]
[1728862402811,3.14231,2467.8,2467.5,2.11616]
[1728862403012,0.40534,2467.7,2467.6,1.32]
[1728862403212,0.40534,2467.7,2467.6,1.7111]
[1728862403706,0.809,2467.8,2467.6,1.7111]
[1728862403912,1.21432,2467.8,2467.7,1.32]
[1728862405610,7.7072,2467.9,2467.7,1.32]
[1728862405611,3.6131,2467.9,2467.7,1.72533]
[1728862405815,3.2078,2467.9,2467.8,1.32]
[1728862406008,3.6131,2467.9,2467.8,1.32]
[1728862406205,0.4053,2467.9,2467.8,1.32]
[1728862407312,0.81919,2468.0,2467.8,1.72531]
[1728862407616,0.81919,2468.0,2467.9,1.717]
[1728862407817,0.81919,2468.0,2467.9,2.1388]
[1728862410026,3.3018,2468.3,2467.9,2.1388]
[1728862410216,0.40527,2468.1,2467.9,1.22409]
[1728862411110,0.40528,2468.0,2467.9,0.8188]
[1728862411318,0.40528,2468.0,2467.9,2.1388]
[1728862413721,0.40528,2468.1,2467.9,2.1388]
[1728862413925,0.40528,2468.1,2468.0,1.32]
[1728862429044,0.40532,2467.8,2467.7,0.3934]
[1728862429341,0.40532,2467.8,2467.7,6.157]
[1728862429747,0.40532,2467.8,2467.7,2.105]
[1728862430050,0.40532,2467.8,2467.7,6.157]
[1728862430251,0.40532,2467.8,2467.7,2.5135]
[1728862430455,0.40532,2467.8,2467.7,6.5655]
[1728862432141,0.40532,2467.8,2467.7,6.97083]
[1728862435054,0.40531,2467.9,2467.8,0.40531]
[1728862435254,0.40529,2468.0,2467.9,0.40529]
[1728862435649,0.40528,2468.1,2468.0,0.40527]
[1728862435846,0.40528,2468.1,2468.0,3.44097]
[1728862436849,0.40528,2468.1,2468.0,3.0357]
[1728862437250,0.40528,2468.1,2468.0,2.12098]
[1728862438357,0.40528,2468.1,2468.0,3.44098]
[1728862438758,0.40528,2468.1,2468.0,2.12098]
[1728862439252,2.12532272,2468.6,2468.0,7.0877]
[1728862439454,0.40522,2468.4,2468.2,0.40525]
[1728862439653,0.40522,2468.4,2468.3,0.40523]
[1728862439862,0.40521,2468.5,2468.3,0.40523]
[1728862440362,0.40521,2468.5,2468.4,0.3916]
[1728862440557,0.40521,2468.5,2468.4,1.7116]
[1728862440754,0.3919,2468.6,2468.4,1.7116]
[1728862440955,0.40517,2468.7,2468.6,0.40518]
[1728862441162,5.33312272,2468.8,2468.6,1.72518]
[1728862441355,5.73828272,2468.8,2468.7,1.32]
[1728862441554,3.61296,2468.8,2468.7,1.703]
[1728862441757,0.40518,2468.6,2468.3,0.40523]
[1728862441955,0.40518,2468.6,2468.5,1.32]
[1728862443265,0.40517,2468.7,2468.5,1.7252]
[1728862443565,0.40517,2468.7,2468.6,1.7106]
[1728862443870,0.40517,2468.7,2468.6,2.1086]
[1728862444255,3.61296,2468.8,2468.6,2.51378]
[1728862444460,3.61295,2468.8,2468.7,1.32]
[1728862450463,3.2078,2468.8,2468.6,0.398]
[1728862450668,3.61295,2468.8,2468.7,1.32]
[1728862452664,0.40522,2468.4,2468.3,0.4025]
[1728862452864,0.40522,2468.4,2468.3,1.7225]
[1728862455672,0.80362,2468.4,2468.3,1.7225]
[1728862456567,0.80362,2468.4,2468.3,2.12773]
[1728862457865,1.20322,2468.4,2468.3,2.12773]
[1728862458869,0.3996,2468.4,2468.3,2.12773]
[1728862459780,0.80482,2468.4,2468.3,2.12773]
[1728862460285,1.19112,2468.4,2468.3,2.12773]
[1728862462080,0.7859,2468.4,2468.3,2.12773]
[1728862462374,0.80482,2468.4,2468.3,2.12773]
[1728862464486,0.3996,2468.4,2468.3,2.12773]
[1728862464681,0.80482,2468.4,2468.3,2.12773]
[1728862465270,0.80482,2468.4,2468.3,1.32]
[1728862465678,0.80482,2468.4,2468.3,1.72523]
[1728862467386,0.80482,2468.4,2468.2,0.79384]
[1728862467387,0.40523,2468.3,2468.2,0.79384]
[1728862467683,0.80683,2468.3,2468.2,1.72524]
[1728862469878,0.80683,2468.3,2468.0,1.47763154]
[1728862469879,0.4016,2468.3,2468.0,1.47763154]
[1728862470188,0.80683,2468.3,2468.2,1.32]
[1728862472186,6.17803,2468.3,2468.2,1.32]
[1728862472787,0.40525,2468.2,2468.1,1.32]
[1728862475187,4.45725,2468.2,2468.1,1.32]
[1728862478496,0.40525,2468.2,2468.1,1.32]
[1728862478791,4.45725,2468.2,2468.1,1.32]
[1728862479185,0.40525,2468.2,2468.1,1.32]
[1728862479583,4.45725,2468.2,2468.1,1.32]
[1728862480192,0.40525,2468.2,2468.1,1.32]
[1728862481683,4.45725,2468.2,2468.1,1.32]
[1728862481889,0.40525,2468.2,2468.1,1.32]
[1728862482091,4.45725,2468.2,2468.1,1.32]
[1728862483295,0.40527,2468.1,2468.0,1.32]
[1728862483595,0.81957,2468.1,2468.0,1.32]
[1728862485094,2.7475,2468.1,2467.8,2.1457]
[1728862485398,0.4053,2467.9,2467.8,1.23101]
[1728862486291,0.4053,2467.9,2467.8,2.55101]
[1728862487392,0.79149,2468.0,2467.9,0.4053]
[1728862487587,0.79149,2468.0,2467.9,1.7253]
[1728862487797,0.79149,2468.0,2467.9,1.32]
[1728862488296,0.79149,2468.0,2467.9,1.7253]
[1728862489097,0.79149,2468.0,2467.9,1.32]
[1728862490285,0.4053,2467.9,2467.8,2.55101]
[1728862491489,0.8035,2467.9,2467.8,2.55101]
[1728862492092,2.1235,2467.9,2467.8,0.4096]
[1728862492288,0.40533,2467.7,2467.6,5.71704]
[1728862492489,0.40533,2467.7,2467.6,6.13014]
[1728862494292,2.73147,2467.9,2467.6,5.7248]
[1728862494493,0.40532,2467.9,2467.8,1.72532]
[1728862498302,1.72532,2467.9,2467.8,0.40532]
[1728862500402,1.32,2467.9,2467.7,1.32]
[1728862500706,0.40532,2467.8,2467.7,1.72532]
[1728862501598,1.72531,2467.9,2467.7,1.32]
[1728862501799,1.72531,2467.9,2467.8,0.40532]
[1728862502503,5.32817762,2468.2,2467.8,1.32]
[1728862502707,3.2078,2468.2,2468.0,1.72528]
[1728862502902,3.2078,2468.2,2468.1,0.4197]
[1728862502903,3.61305,2468.2,2468.1,0.4197]
[1728862503202,3.2078,2468.2,2468.1,2.14497]
[1728862503404,0.40524,2468.3,2468.2,0.40525]
[1728862503703,5.32817762,2468.7,2468.3,0.395]
[1728862503902,5.32817762,2468.7,2468.6,1.32]
[1728862503903,3.61297,2468.7,2468.6,1.32]
[1728862504304,3.61297,2468.7,2468.6,1.21988]
[1728862504305,3.2078,2468.7,2468.6,1.21988]
[1728862504604,3.61297,2468.7,2468.6,0.8147]
[1728862504807,4.93297,2468.7,2468.6,0.8147]
[1728862507504,4.5278,2468.7,2468.2,2.38013154]
[1728862507707,0.40521,2468.5,2468.3,1.20083]
[1728862507907,1.32,2468.4,2468.3,1.20083]
[1728862508300,1.32,2468.4,2468.3,2.52083]
[1728862508701,1.72522,2468.4,2468.3,2.52083]
[1728862509008,1.72522,2468.4,2468.3,2.1156]
[1728862509612,1.72522,2468.4,2468.3,0.7956]
[1728862510519,1.72522,2468.4,2468.3,0.3906]
[1728862523727,0.40522,2468.4,2468.3,2.11583]
[1728862524432,3.99699,2468.6,2468.3,1.7106]
[1728862524635,1.72516,2468.8,2468.7,0.40517]
[1728862524821,1.72515,2468.8,2468.7,1.32]
[1728862525019,0.40518,2468.7,2468.6,1.72518]
[1728862525424,0.40518,2468.7,2468.6,2.11338]
[1728862525628,0.40518,2468.7,2468.6,0.79338]
[1728862525826,1.72516,2468.8,2468.7,0.40517]
[1728862526535,3.2078,2468.9,2468.7,1.32]
[1728862526536,4.93294,2468.9,2468.7,1.32]
[1728862526832,4.93294,2468.9,2468.8,0.40515]
[1728862527627,4.93294,2468.9,2468.6,2.11338]
[1728862527628,4.5278,2468.9,2468.6,2.11338]
[1728862527832,0.40517,2468.7,2468.6,0.3882]
[1728862528031,0.40517,2468.7,2468.6,0.79338]
[1728862528235,0.40518,2468.6,2468.5,0.817]
[1728862528428,2.13928,2468.6,2468.5,0.4118]
[1728862530333,1.7341,2468.6,2468.4,0.3815]
[1728862530531,1.7341,2468.6,2468.3,3.2078]
[1728862530532,0.40522,2468.4,2468.3,3.2078]
[1728862530724,1.72522,2468.4,2468.3,3.2078]
[1728862530929,2.11502,2468.4,2468.3,3.2078]
[1728862532935,2.11502,2468.4,2468.3,3.61303]
[1728862533340,1.72522,2468.4,2468.3,3.61303]
[1728862533539,0.40522,2468.4,2468.3,3.2078]
[1728862533834,0.40522,2468.4,2468.3,3.61303]
[1728862534036,0.4052,2468.5,2468.3,7.259]
[1728862534242,1.7252,2468.5,2468.4,0.40522]
[1728862534437,1.7252,2468.5,2468.4,0.79072]
[1728862535629,1.32,2468.5,2468.4,0.79072]
[1728862535832,0.4141,2468.6,2468.5,0.4052]
[1728862535833,0.4052,2468.6,2468.5,0.4052]
[1728862536038,0.4052,2468.6,2468.4,1.7055]
[1728862536039,1.32,2468.7,2468.4,1.7055]
[1728862536341,1.32,2468.7,2468.6,0.40518]
[1728862536342,1.72517,2468.7,2468.6,0.40518]
[1728862537539,1.32,2468.7,2468.6,0.40518]
[1728862537939,0.40516,2468.8,2468.6,1.72518]
[1728862538140,0.40516,2468.8,2468.7,0.3955]
[1728862538339,0.40516,2468.8,2468.7,1.21417]
[1728862538644,0.40516,2468.8,2468.7,0.809]
[1728862539034,0.40515,2468.8,2468.7,1.21416]
[1728862539245,1.72515,2468.8,2468.7,1.21416]
[1728862540129,1.72515,2468.8,2468.7,0.809]
[1728862540334,1.72515,2468.8,2468.7,1.21417]
[1728862541036,3.2078,2468.9,2468.7,0.809]
[1728862541344,3.2078,2468.9,2468.8,0.40515]
[1728862541345,1.72513,2468.9,2468.8,0.40515]
[1728862542437,0.40515,2468.8,2468.7,1.21416]
[1728862542633,1.32,2468.8,2468.7,1.21416]
[1728862542934,1.32,2468.8,2468.7,0.809]
[1728862543142,1.7105,2468.8,2468.5,0.4052]
[1728862543350,0.82207,2468.7,2468.6,0.4098]
[1728862544233,2.14207,2468.7,2468.6,0.4098]
[1728862545844,0.40517,2468.7,2468.6,0.4098]
[1728862546146,1.7105,2468.8,2468.6,0.4098]
[1728862546147,2.12764,2468.9,2468.8,0.40515]
[1728862547845,0.40516,2468.8,2468.7,0.40516]
[1728862548142,1.72516,2468.8,2468.7,0.40516]
[1728862548532,1.32,2468.8,2468.6,1.85403154]
[1728862548736,1.32,2468.8,2468.6,1.87511154]
[1728862548737,1.72517,2468.7,2468.6,1.87511154]
[1728862549648,1.72517,2468.7,2468.6,2.00179986]
[1728862550040,1.72517,2468.7,2468.6,1.87511154]
[1728862550843,1.32,2468.8,2468.6,1.87511154]
[1728862551046,0.40515,2468.9,2468.8,0.40514]
[1728862551544,0.40515,2468.9,2468.7,2.38013154]
[1728862551545,0.40515,2468.8,2468.7,1.46528154]
[1728862551742,0.40515,2468.8,2468.7,1.5919624]
[1728862551942,1.7435,2469.0,2468.7,5.2372124]
[1728862552142,0.40515,2468.9,2468.8,0.40515]
[1728862552746,1.72515,2468.9,2468.8,0.40515]
[1728862552949,0.40515,2468.9,2468.8,0.40515]
[1728862555451,1.72515,2468.9,2468.8,0.40515]
[1728862555951,1.32,2468.9,2468.8,0.40515]
[1728862556148,1.72513,2468.9,2468.8,0.40515]
[1728862556347,1.72513,2468.9,2468.8,0.82175]
[1728862556546,1.32,2468.9,2468.8,0.82175]
[1728862556947,0.40512,2469.0,2468.9,0.40513]
[1728862557145,1.32,2469.0,2468.9,0.81363]
[1728862557457,1.32,2469.0,2468.9,1.21263]
[1728862558049,1.72512,2469.0,2468.9,1.21263]
[1728862558249,1.72512,2469.0,2468.9,0.8075]
[1728862559848,1.32,2469.0,2468.7,0.40516]
[1728862560054,0.40515,2468.8,2468.7,0.79896]
[1728862560245,0.40515,2468.8,2468.7,0.3938]
[1728862560447,0.40517,2468.7,2468.6,1.06013154]
[1728862560746,0.40518,2468.6,2468.5,4.66173154]
[1728862561050,0.40518,2468.6,2468.4,0.3915]
[1728862561051,1.7416,2468.6,2468.4,0.3915]
[1728862561255,0.40522,2468.4,2468.3,1.45393154]
[1728862561445,0.40522,2468.4,2468.3,0.3938]
[1728862562450,1.72522,2468.4,2468.3,0.3938]
[1728862562656,4.5278,2468.4,2468.1,1.44563154]
[1728862562849,1.72525,2468.2,2468.1,1.44563154]
[1728862563249,1.72525,2468.2,2468.1,0.3855]
[1728862563955,1.72525,2468.2,2468.1,1.44563154]
[1728862565154,1.72525,2468.2,2468.1,1.85090154]
[1728862565451,1.72525,2468.2,2468.1,1.44563154]
[1728862566255,1.72525,2468.2,2468.1,1.85090154]
[1728862567353,1.72525,2468.2,2468.1,1.44563154]
[1728862568459,0.40528,2468.0,2467.9,0.3953]
[1728862568669,1.72528,2468.0,2467.9,0.3953]
[1728862571953,0.4084,2468.1,2467.9,1.7153]
[1728862572153,0.4084,2468.1,2468.0,1.72528]
[1728862572154,0.81367,2468.1,2468.0,1.72528]
[1728862572760,0.81367,2468.1,2468.0,1.32]
[1728862573565,0.81367,2468.1,2467.9,0.80059]
[1728862573566,0.81367,2468.1,2467.9,2.12059]
[1728862573762,0.4084,2468.1,2467.9,1.7153]
[1728862573966,0.40528,2468.0,2467.9,1.7153]
[1728862574462,0.40528,2468.0,2467.9,2.1206]
[1728862574653,0.40528,2468.0,2467.9,0.3953]
[1728862575865,0.40528,2468.0,2467.9,0.8006]
[1728862576767,0.40528,2468.0,2467.9,0.3953]
[1728862578261,0.40528,2468.0,2467.9,0.8006]
[1728862581966,0.40528,2468.0,2467.9,0.3953]
[1728862582268,0.79128,2468.0,2467.9,0.3953]
[1728862582466,0.79128,2468.0,2467.9,0.8006]
[1728862583166,0.4053,2467.9,2467.8,0.4207]
[1728862583469,0.40535,2467.7,2467.6,0.40535]
[1728862583675,2.13462,2467.8,2467.7,0.40533]
[1728862583873,0.81462,2467.8,2467.7,0.40533]
[1728862584571,0.4093,2467.8,2467.7,0.40533]
[1728862584767,0.81462,2467.8,2467.7,0.3937]
[1728862585077,0.81462,2467.8,2467.7,0.79903]
[1728862591079,0.81462,2467.8,2467.7,0.3937]
[1728862591271,2.13462,2467.8,2467.7,0.3937]
[1728862592877,2.13462,2467.8,2467.7,0.79903]
[1728862593082,2.13462,2467.8,2467.7,0.3937]
[1728862602282,4.60704,2468.0,2467.7,0.3937]
[1728862602483,1.72532,2467.8,2467.7,0.3937]
[1728862605480,1.32,2467.8,2467.4,4.26793154]
[1728862605683,0.40536,2467.5,2467.4,3.6264]
[1728862605982,1.72536,2467.5,2467.4,3.6264]
[1728862606775,1.72536,2467.5,2467.4,0.4186]
[1728862607589,1.72536,2467.5,2467.2,1.06013154]
[1728862607590,1.32,2467.5,2467.2,1.06013154]
[1728862607781,1.32,2467.3,2467.1,1.89503154]
[1728862607987,2.11491,2467.2,2467.1,0.4186]
[1728862608182,4.9173,2467.2,2467.0,1.06013154]
[1728862608491,8.97737762,2467.1,2466.5,0.7638]
[1728862608687,1.32,2466.6,2466.5,0.3868]
[1728862611984,1.72551,2466.6,2466.5,0.3868]
[1728862612377,1.32,2466.6,2466.5,0.3868]
[1728862612893,1.72551,2466.6,2466.5,0.3868]
[1728862613279,1.72551,2466.6,2466.5,0.79233]
[1728862614182,1.72551,2466.6,2466.5,0.3868]
[1728862614990,1.72551,2466.6,2466.5,0.79233]
[1728862615389,1.72551,2466.6,2466.5,0.3868]
[1728862616091,1.7241,2466.6,2466.3,3.2078]
[1728862616294,1.72555,2466.4,2466.3,3.2078]
[1728862620194,0.40556,2466.3,2466.2,0.4021]
[1728862620397,1.72556,2466.3,2466.2,0.4021]
[1728862620593,0.40558,2466.2,2466.1,0.3831]
[1728862620787,2.11698,2466.2,2466.1,0.3831]
[1728862621493,2.11698,2466.2,2465.9,0.3865]
[1728862621494,4.9192,2466.2,2465.9,0.3865]
[1728862621795,1.72561,2466.0,2465.9,0.3865]
[1728862624603,3.2078,2466.2,2465.9,1.7065]
[1728862624796,3.2078,2466.2,2466.1,0.40559]
[1728862624992,4.5278,2466.2,2466.1,0.40559]
[1728862626389,4.5278,2466.2,2466.0,0.3872]
[1728862626585,4.5278,2466.2,2466.1,0.40559]
[1728862626586,3.61338,2466.2,2466.1,0.40559]
[1728862626791,4.93338,2466.2,2466.0,0.7928]
[1728862626993,1.32,2466.1,2466.0,0.7928]
[1728862627796,1.72559,2466.1,2465.9,0.3865]